[Event "14th Chennai GM Open 2023"]
[Site "Chennai"]
[Date "2024.01.07"]
[Round "10.12"]
[White "Manish Anto Cristiano F"]
[Black "Kulkarni, Vinayak"]
[Result "1/2-1/2"]
[ECO "B38"]
[WhiteElo "2349"]
[BlackElo "1976"]
[Annotator "RC"]
[PlyCount "85"]
[EventDate "2023.12.31"]
[EventType "swiss"]
[EventCountry "IND"]
[SourceTitle "playchess.com"]
[Source "ChessBase"]
[SourceQuality "1"]
[TimeControl "5400+30"]

1. e4 {[%emt 0:00:02]} c5 {[%emt 0:01:17]} 2. Nf3 {[%emt 0:00:12]} Nc6 {[%emt 0:00:12]} 3. d4 {[%emt 0:00:15]} cxd4 {[%emt 0:00:15]} 4. Nxd4 {[%emt 0:00:09]} g6 {[%emt 0:00:29]} 5. c4 {[%emt 0:00:17]} Nf6 {[%emt 0:00:51]} 6. Nc3 {[%emt 0:00:25]} d6 {[%emt 0:00:22]} 7. f3 {[%emt 0:03:37]} Bg7 {[%emt 0:00:41]} 8. Be3 {[%emt 0:00:10]} O-O {[%emt 0:00:20]} 9. Qd2 {[%emt 0:00:23]} Bd7 {[%emt 0:00:14]} 10. Be2 {[%emt 0:01:45]} Nxd4 {[%emt 0:01:32]} 11. Bxd4 {[%emt 0:00:11]} Bc6 {[%emt 0:00:12]} 12. O-O {[%emt 0:00:40]} a5 {[%emt 0:01:46]} 13. b3 {[%emt 0:02:49]} e6 {[%emt 0:04:26]} 14. Rad1 {[%emt 0:03:33]} Qe7 {[%emt 0:01:21]} 15. Rfe1 {[%emt 0:01:08]} Rfc8 {[%emt 0:05:26]} 16. Bf1 {[%emt 0:01:18]} Qf8 {[%emt 0:05:28]} 17. Kh1 {[%emt 0:01:51]} Ne8 {[%emt 0:07:17]} 18. Be3 {[%emt 0:17:01]} b5 {[%emt 0:18:17]} 19. cxb5 {[%emt 0:05:43]} Bxc3 {[%emt 0:00:34]} 20. Qxc3 {[%emt 0:00:06]} Bxb5 {[%emt 0:00:57]} 21. Qd2 {[%emt 0:05:45]} Bxf1 {[%emt 0:03:16]} 22. Rxf1 {[%emt 0:00:08]} Qe7 {[%emt 0:04:21]} 23. Rc1 {[%emt 0:15:02]} Qb7 {[%emt 0:05:54]} 24. Rxc8 {[%emt 0:00:11]} Qxc8 {[%emt 0:00:36]} 25. Rc1 {[%emt 0:00:12]} Qd7 {[%emt 0:10:17]} 26. h3 {[%emt 0:01:36]} Qb7 {[%emt 0:05:19]} 27. Bd4 {[%emt 0:02:12]} a4 {[%emt 0:04:53]} 28. b4 {[%emt 0:01:35]} a3 {[%emt 0:00:19]} 29. Rb1 {[%emt 0:02:42]} Qb5 {[%emt 0:00:38]} 30. Rb3 {[%emt 0:00:32]} Nc7 {[%emt 0:03:17]} 31. Qc1 {[%emt 0:03:12]} e5 {[%emt 0:03:55]} 32. Qxc7 {[%emt 0:01:59]} exd4 {[%emt 0:00:07]} 33. Qxd6 {[%emt 0:00:07]} Qc4 {[%emt 0:00:06]} 34. Qd5 {[%emt 0:01:57]} Qc1+ {[%emt 0:00:14]} 35. Kh2 {[%emt 0:00:21]} Qf4+ {[%emt 0:02:42]} 36. Kh1 {[%emt 0:01:02]} Rc8 {[%emt 0:01:45]} 37. Rb1 {[%emt 0:00:09]} Rc1+ {[%emt 0:00:47]} 38. Rxc1 {[%emt 0:00:08]} Qxc1+ {[%emt 0:00:05]} 39. Kh2 {[%emt 0:00:08]} Qf4+ {[%emt 0:00:37]} 40. Kh1 {[%emt 0:00:19]} Qe3 {[%emt 0:03:32]} 41. b5 {[%emt 0:00:54]} Qc1+ {[%emt 0:02:16]} 42. Kh2 {[%emt 0:00:08]} Qf4+ {[%emt 0:00:04]} 43. Kh1 {[%emt 0:00:09]} 1/2-1/2

[Event "14th Chennai GM Open 2023"]
[Site "Chennai"]
[Date "2024.01.07"]
[Round "10.13"]
[White "Sushanth Kamabathula"]
[Black "Manik, Mikulas"]
[Result "0-1"]
[ECO "B72"]
[WhiteElo "1742"]
[BlackElo "2343"]
[Annotator "RC"]
[PlyCount "78"]
[EventDate "2023.12.31"]
[EventType "swiss"]
[EventCountry "IND"]
[SourceTitle "playchess.com"]
[Source "ChessBase"]
[SourceQuality "1"]
[TimeControl "5400+30"]

1. e4 {[%emt 1:31:00]} c5 {[%emt 0:00:03]} 2. Nf3 {[%emt 0:00:00]} d6 {[%emt 0:00:02]} 3. d4 {[%emt 0:00:00]} cxd4 {[%emt 0:00:04]} 4. Nxd4 {[%emt 0:00:00]} Nf6 {[%emt 0:00:02]} 5. Nc3 {[%emt 0:00:00]} g6 {[%emt 0:00:02]} 6. Be3 {[%emt 0:00:00]} a6 {[%emt 0:00:05]} 7. f3 {[%emt 0:00:00]} h5 {[%emt 0:00:04]} 8. Qd2 {[%emt 0:00:00]} e5 {[%emt 0:00:02]} 9. Nb3 {[%emt 0:00:00]} Be6 {[%emt 0:00:08]} 10. O-O-O {[%emt 0:00:00]} Nbd7 {[%emt 0:00:13]} 11. Kb1 {[%emt 0:00:00]} Rc8 {[%emt 0:02:15]} 12. Be2 {[%emt 0:00:00]} Qc7 {[%emt 0:05:45]} 13. Rc1 {[%emt 0:00:00]} b5 {[%emt 0:03:37]} 14. Rhd1 {[%emt 0:00:00]} Nb6 {[%emt 0:06:03]} 15. Bxb5+ {[%emt 0:00:00]} axb5 {[%emt 0:00:28]} 16. Nxb5 {[%emt 0:00:00]} Qb8 {[%emt 0:00:40]} 17. Nxd6+ {[%emt 0:00:00]} Bxd6 {[%emt 0:00:27]} 18. Qxd6 {[%emt 0:00:00]} Nc4 {[%emt 0:04:26]} 19. Qxb8 {[%emt 0:00:00]} Rxb8 {[%emt 0:00:02]} 20. Bf2 {[%emt 0:00:00]} h4 {[%emt 0:02:15]} 21. Rd3 {[%emt 0:00:00]} Nh5 {[%emt 0:04:30]} 22. g3 {[%emt 0:00:00]} hxg3 {[%emt 0:03:23]} 23. hxg3 {[%emt 0:00:00]} Nf6 {[%emt 0:00:17]} 24. Re1 {[%emt 0:00:00]} Rh2 {[%emt 0:04:00]} 25. Bc5 {[%emt 0:00:00]} Nd7 {[%emt 0:03:09]} 26. Bg1 {[%emt 0:00:00]} Rg2 {[%emt 0:00:15]} 27. g4 {[%emt 0:00:00]} Ndb6 {[%emt 0:00:11]} 28. Bxb6 {[%emt 0:00:00]} Rxb6 {[%emt 0:00:17]} 29. Red1 {[%emt 0:00:00]} Ke7 {[%emt 0:01:05]} 30. a4 {[%emt 0:00:00]} Rb4 {[%emt 0:05:30]} 31. a5 {[%emt 0:00:00]} Rb5 {[%emt 0:00:17]} 32. Rc3 {[%emt 0:00:00]} Nxa5 {[%emt 0:02:28]} 33. Nc5 {[%emt 0:00:00]} Nc4 {[%emt 0:05:05]} 34. Na4 {[%emt 0:00:00]} Rb4 {[%emt 0:03:53]} 35. b3 {[%emt 0:04:54]} Na3+ {[%emt 0:01:22]} 36. Kc1 {[%emt 0:00:45]} Rxc2+ {[%emt 0:00:45]} 37. Rxc2 {[%emt 0:00:08]} Nxc2 {[%emt 0:00:04]} 38. Kxc2 {[%emt 0:00:50]} Bxb3+ {[%emt 0:00:10]} 39. Kc3 {[%emt 0:00:08]} Bxa4 {[%emt 0:00:13]} 0-1

[Event "14th Chennai GM Open 2023"]
[Site "Chennai"]
[Date "2024.01.07"]
[Round "10.14"]
[White "Jake Shanty"]
[Black "Gochelashvili, David"]
[Result "0-1"]
[ECO "A29"]
[WhiteElo "1903"]
[BlackElo "2287"]
[Annotator "RC"]
[PlyCount "72"]
[EventDate "2023.12.31"]
[EventType "swiss"]
[EventCountry "IND"]
[SourceTitle "playchess.com"]
[Source "ChessBase"]
[SourceQuality "1"]
[TimeControl "5400+30"]

1. c4 {[%emt 0:00:03]} e5 {[%emt 0:00:34]} 2. Nc3 {[%emt 0:00:27]} Nf6 {[%emt 0:00:08]} 3. g3 {[%emt 0:02:22]} d5 {[%emt 0:00:22]} 4. cxd5 {[%emt 0:00:29]} Nxd5 {[%emt 0:00:06]} 5. Bg2 {[%emt 0:01:10]} Nb6 {[%emt 0:00:18]} 6. Nf3 {[%emt 0:02:31]} Nc6 {[%emt 0:00:59]} 7. d3 {[%emt 0:00:48]} Be7 {[%emt 0:00:27]} 8. O-O {[%emt 0:01:23]} O-O {[%emt 0:00:05]} 9. a3 {[%emt 0:03:28]} Be6 {[%emt 0:01:40]} 10. b4 {[%emt 0:04:47]} a5 {[%emt 0:01:18]} 11. b5 {[%emt 0:20:28]} Nd4 {[%emt 0:00:30]} 12. Nd2 {[%emt 0:11:10]} Qd7 {[%emt 0:25:38]} 13. Rb1 {[%emt 0:09:52]} Rab8 {[%emt 1:04:55]} 14. e3 {[%emt 0:19:22]} Nf5 {[%emt 0:00:00]} 15. Nb3 {[%emt 0:02:15]} Rfd8 {[%emt 0:00:00]} 16. Be4 {[%emt 0:05:25]} Nd6 {[%emt 0:00:00]} 17. Nc5 {[%emt 0:02:02]} Qc8 {[%emt 0:00:00]} 18. Nxe6 {[%emt 0:01:00]} Nxe4 {[%emt 0:00:00]} 19. Nxe4 {[%emt 0:03:36]} Qxe6 {[%emt 0:00:00]} 20. Qc2 {[%emt 0:00:35]} f5 {[%emt 0:00:00]} 21. Nc3 {[%emt 0:03:15]} Rd6 {[%emt 0:00:00]} 22. Rd1 {[%emt 0:02:03]} c5 {[%emt 0:00:32]} 23. bxc6 {[%emt 0:02:26]} Rxc6 {[%emt 0:00:03]} 24. Bb2 {[%emt 0:00:48]} Rbc8 {[%emt 0:00:10]} 25. Rdc1 {[%emt 0:00:23]} f4 {[%emt 0:02:47]} 26. exf4 {[%emt 0:00:33]} exf4 {[%emt 0:00:41]} 27. Re1 {[%emt 0:00:39]} Qh3 {[%emt 0:01:04]} 28. Qe2 {[%emt 0:00:29]} Rh6 {[%emt 0:00:50]} 29. f3 {[%emt 0:00:31]} Bc5+ {[%emt 0:00:11]} 30. Kh1 {[%emt 0:00:05]} fxg3 {[%emt 0:00:06]} 31. d4 {[%emt 0:00:15]} Qxh2+ {[%emt 0:00:11]} 32. Qxh2 {[%emt 0:00:04]} Rxh2+ {[%emt 0:00:04]} 33. Kg1 {[%emt 0:00:05]} Bxd4+ {[%emt 0:00:06]} 34. Kf1 {[%emt 0:00:03]} Rf2+ {[%emt 0:00:12]} 35. Kg1 {[%emt 0:00:04]} Rxb2+ {[%emt 0:00:05]} 36. Kf1 {[%emt 0:00:03]} g2# {[%emt 0:00:05]} 0-1